{"text_format":"1","workbook":"xlsx","n_sheets":2,"sheets":["Feuil1","résultats"],"not_rendered":{"charts":0,"images":0,"macros":1,"external_links":0,"defined_names":0,"comments":0,"pivot_tables":0},"unopened":[],"bounds":{"document_bytes":16777216,"sheet_cells":100000,"rows_first":2000,"rows_last":500,"rows_between":2000,"halvings":0,"cell_chars":16384,"cell_head_chars":4096},"cells_cut":0,"cells_raw":0,"read":"whole","date_system":"1900"}

{"sheet":"Feuil1","index":0,"n_rows":21,"n_cols":14,"rows_kept":21,"cut":false,"hidden":false,"merged":[]}
["Paris","Bruxelles","Londres","Oslo","New-York","Lyon","Berlin","Amsterdam","Cologne"]
["Marc",null,"Marc",null,"Marc","Marc",null,"Marc"]
["Jules",null,null,null,null,null,"Jules"]
["Albert",null,"Pierre",null,null,"Albert",null,"Pierre"]
["Simon","Patrick",null,null,null,"Simon","Patrick"]
["Jean",null,null,null,null,"Jean","Jean"]
[null,"Pierre","Jean",null,null,null,"Jules","Jean",null,null,null,"Compter chaque occurrence"]
["Marc",null,"Marc",null,null,"Marc","Albert","Marc",null,null,null,null,"Marc",{"$f":"COUNTIF($A$2:$I$13,M8)","v":9}]
[null,null,null,null,null,"Jules","Jules","Jean",null,null,null,null,"Jacques",{"$f":"COUNTIF($A$2:$I$13,M9)","v":3}]
[null,null,"Pierre","Jacques",null,null,"Jacques","Pierre","Jacques",null,null,null,"Jean",{"$f":"COUNTIF($A$2:$I$13,M10)","v":7}]
["Simon","Patrick",null,null,null,"Simon","Patrick",null,null,null,null,null,"Pierre",5]
["Jean",null,null,null,null,null,null,null,null,null,null,null,"Patrick",4]
["Jules","Jules",null,null,"Jules",null,null,null,null,null,null,null,"Jules",8]
[null,null,null,null,null,null,null,null,null,null,null,null,"Simon",4]
[null,null,null,null,null,null,null,null,null,null,null,null,"Albert",3]
[]
[null,null,null,null,null,null,null,null,null,null,null,null,null,{"$f":"SUM(N8:N16)","v":43}]
[]
[{"$f":"COUNTIF($A$2:$AJ$13,A21)","v":0},0,1,0,0,0]
[]
[1,2,3,77,88,99]

{"sheet":"résultats","index":1,"n_rows":26,"n_cols":43,"rows_kept":26,"cut":false,"hidden":false,"merged":[]}
["Marc","Jules","Albert","Pierre","Simon","Patrick","Jean","Jacques",null,null,null,null,null,null,null,null,"Marc","Albert","Marc","Jean","Jean","Jules","Jules","Jean","Pierre","Jacques","Jacques","Jacques","Pierre","Jacques","Simon","Patrick","Simon","Patrick","Jean","Jean","Jean","Jean","Jules","Jules","Jean","Jules","Jean"]
[null,null,null,null,null,null,null,null,null,null,null,null,null,null,null,null,"Jules","Jean","Pierre","Jacques","Jacques","Pierre","Jacques","Simon","Patrick","Simon","Patrick","Jean","Jean","Jean","Jean","Jules","Jules","Jean","Jules","Jean"]
["Paris","Paris","Paris","Londres","Paris","Bruxelles","Paris","Oslo"]
["Londres","Berlin","Lyon","Amsterdam","Lyon","Berlin","Lyon","Berlin"]
["New-York","Berlin","Berlin","Bruxelles","Paris","Bruxelles","Berlin","Cologne"]
["Lyon","Lyon",null,"Londres","Lyon","Berlin","Londres"]
["Amsterdam","Berlin",null,"Amsterdam",null,null,"Amsterdam"]
["Paris","Paris",null,null,null,null,"Amsterdam"]
["Londres","Bruxelles",null,null,null,null,"Paris"]
["Lyon","New-York"]
["Amsterdam"]
[]
[]
[]
[]
[]
[]
[]
[]
[]
[]
[]
[]
[]
[]
[{"$f":"COUNTA(A3:A24)","v":9},{"$f":"COUNTA(B3:B24)","v":8},3,5,4,4,7,3,{"$f":"SUM(A26:H26)","v":43}]